fUSD/lending_fUSD_20250215
["ID","MTS","AMOUNT","RATE_DAILY","PERIOD"]
[353138431,1739593870184,-506.4,0.00011569,2]
[353138432,1739593870194,-500.0,0.00011569,2]
[353138433,1739593870204,-500.0,0.00011569,2]
[353138434,1739593870214,-517.38,0.00011569,2]
[353138435,1739593870223,-500.0,0.00011569,2]
[353138436,1739593870232,-703.86,0.00011569,2]
[353138437,1739593870241,-500.0,0.00011569,2]
[353138438,1739593870250,-638.06,0.00011569,2]
[353138439,1739593870259,-500.0,0.00011569,2]
[353138440,1739593870268,-444.05310008,0.00011569,2]
[353138441,1739593870277,-623.24,0.00011569,2]
[353138442,1739593870286,-500.0,0.00011569,2]
[353138443,1739593870295,-500.0,0.00011569,2]
[353138444,1739593870304,-649.63,0.00011569,2]
[353138445,1739593870313,-717.18,0.00011569,2]
[353138446,1739593870322,-416.70586845,0.00011569,2]
[353138447,1739593870331,-627.3,0.00011569,2]
[353138448,1739593870341,-670.63,0.00011569,2]
[353138449,1739593870350,-538.06,0.00011569,2]
[353138450,1739593870359,-603.01775676,0.00011569,2]
[353138451,1739593870368,-664.48,0.00011569,2]
[353138452,1739593870377,-500.0,0.00011569,2]
[353138453,1739593870386,-713.61,0.00011569,2]
[353138454,1739593870396,-907.73,0.00011569,2]
[353138455,1739593870405,-500.0,0.00011569,2]
[353138456,1739593870414,-500.0,0.00011569,2]
[353138457,1739593870423,-629.8,0.00011569,2]
[353138458,1739593870432,-1129.23,0.00011569,2]
[353138459,1739593870442,-627.99,0.00011569,2]
[353138460,1739593870452,-509.07,0.00011569,2]
[353138461,1739593870462,-997.57,0.00011569,2]
[353138462,1739593870478,-1290.21,0.00011569,2]
[353138463,1739593870488,-515.72,0.00011569,2]
[353138464,1739593870498,-517.65,0.00011569,2]
[353138465,1739593870507,-500.0,0.00011569,2]
[353138466,1739593870522,-569.53,0.00011569,2]
[353138467,1739593870532,-1019.14,0.00011569,2]
[353138468,1739593870542,-576.25,0.00011569,2]
[353138469,1739593870552,-1550.29,0.00011569,2]
[353138470,1739593870561,-740.86,0.00011569,2]
[353138471,1739593870571,-950.97,0.00011569,2]
[353138472,1739593870581,-1108.56,0.00011569,2]
[353138473,1739593870590,-2275.7,0.00011569,2]
[353138474,1739593870602,-982.57,0.00011569,2]
[353138475,1739593870612,-500.0,0.00011569,2]
[353138476,1739593870621,-500.0,0.00011569,2]
[353138477,1739593870631,-1285.66,0.00011569,2]
[353138478,1739593870640,-1414.18,0.00011569,2]
[353138479,1739593870649,-2541.83,0.00011569,2]
[353138480,1739593870659,-500.0,0.00011569,2]
[353138481,1739593870668,-1146.51,0.00011569,2]
[353138482,1739593870677,-1245.83,0.00011569,2]
[353138483,1739593870686,-558.71,0.00011569,2]
[353138484,1739593870695,-766.38,0.00011569,2]
[353138485,1739593870704,-500.0,0.00011569,2]
[353138486,1739593870714,-500.0,0.00011569,2]
[353138487,1739593870723,-897.07,0.00011569,2]
[353138488,1739593870733,-500.0,0.00011569,2]
[353138489,1739593870743,-1839.81,0.00011569,2]
[353138490,1739593870752,-859.29,0.00011569,2]
[353138491,1739593870761,-500.0,0.00011569,2]
[353138492,1739593870770,-726.12,0.00011569,2]
[353138493,1739593870779,-601.15,0.00011569,2]
[353138494,1739593870789,-500.0,0.00011569,2]
[353138495,1739593870799,-500.0,0.0001157,2]
[353138496,1739593870808,-701.16,0.0001157,2]
[353138497,1739593870817,-500.0,0.0001157,2]
[353138498,1739593870828,-300.0,0.0001157,2]
[353138499,1739593870837,-500.0,0.0001157,2]
[353138500,1739593870847,-837.21,0.0001157,2]
[353138501,1739593870856,-500.0,0.0001157,2]
[353138502,1739593870866,-500.0,0.0001157,2]
[353138503,1739593870875,-302.68531258,0.0001157,2]
[353138504,1739593870885,-603.94,0.0001157,2]
[353138505,1739593870894,-500.0,0.0001157,2]
[353138506,1739593870903,-500.0,0.0001157,2]
[353138507,1739593870912,-516.72863225,0.0001157,2]
[353138508,1739593870921,-689.49,0.0001157,2]
[353138509,1739593870930,-500.0,0.0001157,2]
[353138510,1739593870939,-606.28,0.0001157,2]
[353138511,1739593870949,-546.69,0.0001157,2]
[353138512,1739593870958,-500.0,0.0001157,2]
[353138513,1739593870967,-500.0,0.0001157,2]
[353138514,1739593870977,-500.0,0.0001157,2]
[353138515,1739593870986,-500.0,0.0001157,2]
[353138516,1739593871001,-206.39090348,0.0001157,2]
[353138517,1739593871019,-722.52,0.0001157,2]
[353138518,1739593871033,-500.0,0.0001157,2]
[353138519,1739593871042,-500.0,0.0001157,2]
[353138520,1739593871052,-500.0,0.0001157,2]
[353138521,1739593871062,-500.0,0.0001157,2]
[353138522,1739593871072,-500.0,0.0001157,2]
[353138523,1739593871082,-500.0,0.0001157,2]
[353138524,1739593871091,-500.0,0.0001157,2]
[353138525,1739593871101,-500.0,0.0001157,2]
[353138526,1739593871111,-548.7,0.0001157,2]
[353138527,1739593871121,-500.0,0.0001157,2]
[353138528,1739593871131,-825.31,0.0001157,2]
[353138529,1739593871141,-504.5,0.0001157,2]
[353138530,1739593871150,-500.0,0.0001157,2]
[353138531,1739593871160,-500.0,0.0001157,2]
[353138532,1739593871169,-500.0,0.0001157,2]
[353138533,1739593871179,-500.0,0.0001157,2]
[353138534,1739593871188,-631.45,0.0001157,2]
[353138535,1739593871198,-523.67,0.0001157,2]
[353138536,1739593871207,-627.76,0.0001157,2]
[353138537,1739593871216,-599.75,0.0001157,2]
[353138538,1739593871226,-876.51,0.0001157,2]
[353138539,1739593871235,-500.0,0.0001157,2]
[353138540,1739593871245,-1025.65,0.0001157,2]
[353138541,1739593871254,-500.0,0.0001157,2]
[353138542,1739593871263,-500.0,0.0001157,2]
[353138543,1739593871273,-500.0,0.0001157,2]
[353138544,1739593871283,-838.6,0.0001157,2]
[353138545,1739593871293,-582.559622,0.0001157,2]
[353138546,1739593871302,-740.5,0.0001157,2]
[353138547,1739593871312,-500.0,0.0001157,2]
[353138548,1739593871321,-742.28,0.0001157,2]
[353138549,1739593871331,-500.0,0.0001157,2]
[353138550,1739593871341,-633.18,0.0001157,2]
[353138551,1739593871351,-555.04,0.0001157,2]
[353138552,1739593871360,-976.16,0.0001157,2]
[353138553,1739593871369,-531.86,0.0001157,2]
[353138554,1739593871379,-1565.45,0.0001157,2]
[353138555,1739593871388,-1298.92,0.0001157,2]
[353138556,1739593871398,-943.37,0.0001157,2]
[353138557,1739593871408,-628.53,0.0001157,2]
[353138558,1739593871417,-1055.91,0.0001157,2]
[353138559,1739593871427,-515.13508,0.0001157,2]
[353138560,1739593871437,-878.08,0.0001157,2]
[353138561,1739593871446,-1036.5,0.0001157,2]
[353138562,1739593871455,-500.0,0.0001157,2]
[353138563,1739593871466,-500.0,0.0001157,2]
[353138564,1739593871475,-1228.85,0.0001157,2]
[353138565,1739593871485,-1315.67,0.0001157,2]
[353138566,1739593871495,-634.48,0.0001157,2]
[353138567,1739593871504,-772.03,0.0001157,2]
[353138568,1739593871520,-1469.47,0.0001157,2]
[353138569,1739593871530,-500.0,0.0001157,2]
[353138570,1739593871539,-500.0,0.0001157,2]
[353138571,1739593871550,-5419.81,0.0001157,2]
[353138572,1739593871560,-500.0,0.0001157,2]
[353138573,1739593871569,-3773.37,0.0001157,2]
[353138574,1739593871581,-835.28,0.0001157,2]
[353138575,1739593871592,-1068.34,0.0001157,2]
[353138576,1739593871601,-527.72,0.0001157,2]
[353138577,1739593871611,-553.91,0.0001157,2]
[353138578,1739593871620,-500.0,0.0001157,2]
[353138579,1739593871629,-1039.68,0.0001157,2]
[353138580,1739593871639,-944.97,0.0001157,2]
[353138581,1739593871648,-1053.33,0.0001157,2]
[353138582,1739593871657,-915.3,0.0001157,2]
[353138583,1739593871667,-772.32,0.0001157,2]
[353138584,1739593871677,-1220.64,0.0001157,2]
[353138585,1739593871686,-828.77,0.0001157,2]
[353138586,1739593871696,-986.44,0.0001157,2]
[353138587,1739593871706,-500.0,0.0001157,2]
[353138588,1739593871715,-500.0,0.0001157,2]
[353138589,1739593871728,-945.07,0.0001157,2]
[353138590,1739593871740,-907.63,0.0001157,2]
[353138591,1739593871750,-1560.12,0.0001157,2]
[353138592,1739593871759,-699.85,0.0001157,2]
[353138593,1739593871768,-670.15,0.0001157,2]
[353138594,1739593871778,-873.52,0.0001157,2]
[353138595,1739593871787,-920.09,0.0001157,2]
[353138596,1739593871796,-1432.47,0.0001157,2]
[353138597,1739593871805,-500.0,0.0001157,2]
[353138598,1739593871814,-1295.6,0.0001157,2]
[353138599,1739593871824,-1315.69,0.0001157,2]
[353138600,1739593871833,-1251.67,0.0001157,2]
[353138601,1739593871842,-682.81,0.0001157,2]
[353138602,1739593871852,-3544.78,0.0001157,2]
[353138603,1739593871861,-1916.85,0.0001157,2]
[353138604,1739593871870,-802.07,0.0001157,2]
[353138605,1739593871880,-725.93,0.0001157,2]
[353138606,1739593871889,-500.0,0.0001157,2]
[353138607,1739593871898,-803.9,0.0001157,2]
[353138608,1739593871907,-517.84,0.0001157,2]
[353138609,1739593871918,-951.13,0.0001157,2]
[353138610,1739593871927,-1572.6,0.0001157,2]
[353138611,1739593871939,-1696.23,0.0001157,2]
[353138612,1739593871950,-783.89,0.0001157,2]
[353138613,1739593871960,-500.0,0.0001157,2]
[353138614,1739593871969,-1099.6,0.0001157,2]
[353138615,1739593871979,-963.56,0.0001157,2]
[353138616,1739593871990,-583.4,0.0001157,2]
[353138617,1739593871999,-567.02,0.0001157,2]
[353138618,1739593872010,-1145.2,0.0001157,2]
[353138619,1739593872019,-500.0,0.0001157,2]
[353138620,1739593872028,-1497.05,0.0001157,2]
[353138621,1739593872038,-500.0,0.0001157,2]
[353138622,1739593872048,-500.0,0.0001157,2]
[353138623,1739593872058,-618.5,0.0001157,2]
[353138624,1739593872067,-1000.0,0.0001157,2]
[353138625,1739593872077,-1111.54,0.0001157,2]
[353138626,1739593872086,-551.89,0.00011571,2]
[353138627,1739593872096,-777.3,0.00011571,2]
[353138628,1739593872106,-526.21,0.00011571,2]
[353138629,1739593872116,-500.0,0.00011571,2]
[353138630,1739593872125,-707.69,0.00011571,2]
[353138631,1739593872135,-500.0,0.00011571,2]
[353138632,1739593872146,-500.0,0.00011571,2]
[353138633,1739593872155,-500.0,0.00011571,2]
[353138634,1739593872164,-500.0,0.00011571,2]
[353138635,1739593872174,-500.0,0.00011571,2]
[353138636,1739593872183,-740.81,0.00011571,2]
[353138637,1739593872193,-1376.6,0.00011571,2]
[353138638,1739593872203,-300.0,0.00011572,2]
[353138639,1739593872213,-500.0,0.00011572,2]
[353138640,1739593872223,-500.0,0.00011572,2]
[353138641,1739593872234,-500.0,0.00011572,2]
[353138642,1739593872244,-500.0,0.00011572,2]
[353138643,1739593872254,-500.0,0.00011572,2]
[353138644,1739593872265,-624.62,0.00011572,2]
[353138645,1739593872276,-500.0,0.00011572,2]
[353138646,1739593872286,-500.0,0.00011572,2]
[353138647,1739593872297,-501.71,0.00011572,2]
[353138648,1739593872308,-500.0,0.00011572,2]
[353138649,1739593872318,-500.0,0.00011572,2]
[353138650,1739593872331,-500.0,0.00011572,2]
[353138651,1739593872341,-500.0,0.00011572,2]
[353138652,1739593872352,-500.0,0.00011572,2]
[353138653,1739593872363,-1200.0,0.00011572,2]
[353138654,1739593872374,-507.20928391,0.00011572,2]
[353138655,1739593872384,-500.0,0.00011572,2]
[353138656,1739593872395,-500.0,0.00011572,2]
[353138657,1739593872405,-500.0,0.00011572,2]
[353138658,1739593872415,-500.0,0.00011572,2]
[353138659,1739593872426,-557.82,0.00011572,2]
[353138660,1739593872436,-500.0,0.00011572,2]
[353138661,1739593872447,-500.0,0.00011572,2]
[353138662,1739593872458,-135.59986999,0.00011572,2]
[353138663,1739593872784,-364.40013001,0.00011572,2]
[353138664,1739593872795,-500.0,0.00011572,2]
[353138665,1739593872805,-500.0,0.00011572,2]
[353138666,1739593872816,-176.09939581,0.00011572,2]
[353138667,1739593872826,-303.27590768,0.00011572,2]
[353138668,1739593872838,-196.72409232,0.00011572,2]
[353138669,1739593872850,-500.0,0.00011572,2]
[353138670,1739593872860,-100.44928404,0.00011572,2]
[353138671,1739593876112,710.08,8.532e-05,2]
[353138672,1739593876857,2642.3227,8.699e-05,2]
[353138676,1739594196082,1000.0,8.779e-05,2]
[353138687,1739595031655,-397.2509,8.836e-05,2]
[353138688,1739595031667,-150.0,8.844e-05,2]
[353138689,1739595031678,-488.879,8.851e-05,2]
[353138690,1739595031688,-1000.0,9.706e-05,2]
[353138691,1739595031698,-150.0,9.719e-05,2]
[353138692,1739595031708,-250.0,9.723e-05,2]
[353138693,1739595031719,-588.78,9.742e-05,2]
[353138694,1739595031729,-150.0,9.844e-05,2]
[353138695,1739595031739,-179.01,9.88e-05,2]
[353138696,1739595031748,-166.23,9.997e-05,2]
[353138697,1739595031758,-150.0,0.00010051,2]
[353138698,1739595031768,-175.47,0.00010137,2]
[353138699,1739595031777,-150.0,0.00010209,2]
[353138700,1739595031787,-150.0,0.00010309,2]
[353138701,1739595032110,-150.0,0.00010401,2]
[353138702,1739595032121,-150.0,0.00010428,2]
[353138703,1739595032131,-150.0,0.0001044,2]
[353138704,1739595032141,-1538.42,0.00010452,2]
[353138705,1739595032152,-150.0,0.00010468,2]
[353138706,1739595032163,-150.0,0.00010482,2]
[353138707,1739595032173,-150.0,0.00010506,2]
[353138708,1739595032182,-150.0,0.00010617,2]
[353138709,1739595032192,-150.0,0.00010646,2]
[353138710,1739595032202,-150.0,0.00010694,2]
[353138711,1739595032212,-34.3101,0.00010785,2]
[353138712,1739595032223,-115.6899,0.00010785,2]
[353138713,1739595032233,-150.0,0.00010792,2]
[353138714,1739595032242,-300.0,0.00010792,2]
[353138715,1739595032253,-150.0,0.00010853,2]
[353138716,1739595032262,-150.0,0.00010902,2]
[353138717,1739595032276,-150.0,0.00010919,2]
[353138718,1739595032286,-10.70834093,0.00010919,2]
[353138719,1739595032307,-989.29165907,0.00010919,2]
[353138720,1739595032316,-38.32141707,0.00010928,2]
[353138721,1739595032336,-111.67858293,0.00010928,2]
[353138722,1739595032347,-664.8751604,0.00010957,2]
[353138723,1739595032357,-500.0,0.00010958,2]
[353138724,1739595032367,-500.0,0.00010958,2]
[353138725,1739595032376,-500.0,0.00010958,2]
[353138726,1739595032385,-500.0,0.00010958,2]
[353138727,1739595032394,-103.8765397,0.00010958,2]
[353138728,1739595032433,-396.1234603,0.00010958,2]
[353138729,1739595032443,-500.0,0.00010958,2]
[353138730,1739595032452,-500.0,0.00010958,2]
[353138731,1739595032461,-500.0,0.00010958,2]
[353138732,1739595032471,-500.0,0.00010958,2]
[353138733,1739595032480,-500.0,0.00010958,2]
[353138734,1739595032490,-500.0,0.00010958,2]
[353138735,1739595032501,-500.0,0.00010958,2]
[353138736,1739595032510,-219.29279691,0.00010958,2]
[353138737,1739595032519,-500.0,0.00010958,2]
[353138738,1739595032529,-611.96,0.00010958,2]
[353138739,1739595032539,-500.0,0.00010958,2]
[353138740,1739595032548,-500.0,0.00010958,2]
[353138741,1739595032558,-500.0,0.00010958,2]
[353138742,1739595032568,-500.0,0.00010958,2]
[353138743,1739595032577,-500.0,0.00010958,2]
[353138744,1739595032586,-500.0,0.00010958,2]
[353138745,1739595032597,-500.0,0.00010958,2]
[353138746,1739595032606,-504.72793673,0.00010958,2]
[353138747,1739595032616,-500.0,0.00010958,2]
[353138748,1739595032625,-500.0,0.00010958,2]
[353138749,1739595032636,-500.0,0.00010958,2]
[353138750,1739595032645,-500.0,0.00010958,2]
[353138751,1739595032655,-500.0,0.00010958,2]
[353138752,1739595032666,-530.42052849,0.00010958,2]
[353138753,1739595032675,-217.18003925,0.00010958,2]
[353138754,1739595032686,-503.01905835,0.00010958,2]
[353138755,1739595032695,-638.77800443,0.00010958,2]
[353138756,1739595032705,-500.0,0.00010958,2]
[353138757,1739595032714,-500.0,0.00010958,2]
[353138758,1739595032724,-619.82158455,0.00010958,2]
[353138759,1739595032734,-291.99189016,0.00010958,2]
[353138760,1739595032743,-500.0,0.00010958,2]
[353138761,1739595032753,-500.0,0.00010958,2]
[353138762,1739595032762,-500.0,0.00010958,2]
[353138763,1739595032772,-556.98165232,0.00010958,2]
[353138764,1739595032786,-500.0,0.00010958,2]
[353138765,1739595032795,-500.0,0.00010958,2]
[353138766,1739595032804,-500.0,0.00010958,2]
[353138767,1739595032814,-500.0,0.00010958,2]
[353138768,1739595032824,-504.85737903,0.00010958,2]
[353138769,1739595032834,-500.0,0.00010958,2]
[353138770,1739595032845,-248.28899756,0.00010958,2]
[353138771,1739595032856,-514.5567042,0.00010958,2]
[353138772,1739595032865,-500.0,0.00010958,2]
[353138773,1739595032874,-504.57844999,0.00010958,2]
[353138774,1739595032886,-500.0,0.00010958,2]
[353138775,1739595032896,-512.77540137,0.00010958,2]
[353138776,1739595032906,-500.0,0.00010958,2]
[353138777,1739595032917,-500.0,0.00010958,2]
[353138778,1739595032927,-589.9,0.00010958,2]
[353138779,1739595032936,-500.0,0.00010958,2]
[353138780,1739595032946,-500.0,0.00010958,2]
[353138781,1739595032956,-500.0,0.00010958,2]
[353138782,1739595032967,-500.0,0.00010958,2]
[353138783,1739595032977,-500.0,0.00010958,2]
[353138784,1739595032987,-500.0,0.00010958,2]
[353138785,1739595032997,-500.0,0.00010958,2]
[353138786,1739595033006,-577.23,0.00010958,2]
[353138787,1739595033016,-500.0,0.00010958,2]
[353138788,1739595033026,-500.0,0.00010958,2]
[353138789,1739595033036,-500.0,0.00010958,2]
[353138790,1739595033046,-500.0,0.00010958,2]
[353138791,1739595033056,-500.0,0.00010958,2]
[353138792,1739595033067,-503.72459964,0.00010958,2]
[353138793,1739595033078,-500.0,0.00010958,2]
[353138794,1739595033088,-500.0,0.00010958,2]
[353138795,1739595033099,-500.0,0.00010958,2]
[353138796,1739595033108,-500.0,0.00010958,2]
[353138797,1739595033118,-640.12,0.00010958,2]
[353138798,1739595033128,-500.0,0.00010958,2]
[353138799,1739595033138,-500.0,0.00010958,2]
[353138800,1739595033147,-260.35267547,0.00010958,2]
[353138801,1739595033159,-613.97,0.00010958,2]
[353138802,1739595033169,-500.0,0.00010958,2]
[353138803,1739595033179,-500.0,0.00010958,2]
[353138804,1739595033189,-500.0,0.00010958,2]
[353138805,1739595033199,-509.63295778,0.00010958,2]
[353138806,1739595033208,-500.0,0.00010958,2]
[353138807,1739595033218,-500.0,0.00010958,2]
[353138808,1739595033228,-500.0,0.00010958,2]
[353138809,1739595033237,-500.0,0.00010958,2]
[353138810,1739595033247,-500.0,0.00010958,2]
[353138811,1739595033256,-500.0,0.00010958,2]
[353138812,1739595033266,-500.0,0.00010958,2]
[353138813,1739595033276,-500.0,0.00010958,2]
[353138814,1739595033286,-500.0,0.00010958,2]
[353138815,1739595033296,-500.0,0.00010958,2]
[353138816,1739595033306,-500.0,0.00010958,2]
[353138817,1739595033316,-500.0,0.00010958,2]
[353138818,1739595033327,-500.0,0.00010958,2]
[353138819,1739595033336,-500.0,0.00010958,2]
[353138820,1739595033347,-500.0,0.00010958,2]
[353138821,1739595033357,-500.0,0.00010958,2]
[353138822,1739595033367,-500.0,0.00010958,2]
[353138823,1739595033379,-632.58956474,0.00010958,2]
[353138824,1739595033389,-500.0,0.00010958,2]
[353138825,1739595033399,-500.0,0.00010958,2]
[353138826,1739595033409,-500.0,0.00010958,2]
[353138827,1739595033418,-500.0,0.00010958,2]
[353138828,1739595033428,-500.0,0.00010958,2]
[353138829,1739595033438,-500.0,0.00010958,2]
[353138830,1739595033448,-500.0,0.00010958,2]
[353138831,1739595033457,-500.0,0.00010958,2]
[353138832,1739595033467,-500.0,0.00010958,2]
[353138833,1739595033489,-500.0,0.00010958,2]
[353138834,1739595033500,-639.89,0.00010958,2]
[353138835,1739595033511,-500.0,0.00010958,2]
[353138836,1739595033523,-500.0,0.00010958,2]
[353138837,1739595033533,-500.0,0.00010958,2]
[353138838,1739595033543,-500.0,0.00010958,2]
[353138839,1739595033554,-500.0,0.00010958,2]
[353138840,1739595033564,-500.0,0.00010958,2]
[353138841,1739595033575,-500.0,0.00010958,2]
[353138842,1739595033585,-500.0,0.00010958,2]
[353138843,1739595033595,-492.57690478,0.00010958,2]
[353138844,1739595033606,-500.0,0.00010958,2]
[353138845,1739595033616,-500.0,0.00010958,2]
[353138846,1739595033626,-500.0,0.00010958,2]
[353138847,1739595033637,-510.3544669,0.00010958,2]
[353138848,1739595033647,-500.0,0.00010958,2]
[353138849,1739595033657,-500.0,0.00010958,2]
[353138850,1739595033667,-500.0,0.00010958,2]
[353138851,1739595033677,-507.19564254,0.00010958,2]
[353138852,1739595033687,-500.0,0.00010958,2]
[353138853,1739595033698,-500.0,0.00010958,2]
[353138854,1739595033709,-500.0,0.00010958,2]
[353138855,1739595033719,-500.0,0.00010958,2]
[353138856,1739595033730,-502.63271625,0.00010958,2]
[353138857,1739595033740,-500.0,0.00010958,2]
[353138858,1739595033751,-500.0,0.00010958,2]
[353138859,1739595033761,-500.0,0.00010958,2]
[353138860,1739595033772,-500.0,0.00010958,2]
[353138861,1739595033783,-500.0,0.00010958,2]
[353138862,1739595033793,-504.03783619,0.00010958,2]
[353138863,1739595033804,-502.40945082,0.00010958,2]
[353138864,1739595033814,-502.95932775,0.00010958,2]
[353138865,1739595033825,-500.0,0.00010958,2]
[353138866,1739595033836,-500.0,0.00010958,2]
[353138867,1739595033846,-500.0,0.00010958,2]
[353138868,1739595033857,-500.0,0.00010958,2]
[353138869,1739595033868,-500.0,0.00010958,2]
[353138870,1739595033879,-503.58385538,0.00010958,2]
[353138871,1739595033892,-500.0,0.00010958,2]
[353138872,1739595033902,-500.0,0.00010958,2]
[353138873,1739595033913,-500.0,0.00010958,2]
[353138874,1739595033924,-642.44,0.00010958,2]
[353138875,1739595033934,-500.0,0.00010958,2]
[353138876,1739595033945,-510.27680666,0.00010958,2]
[353138877,1739595033955,-500.0,0.00010958,2]
[353138878,1739595033965,-505.66433945,0.00010958,2]
[353138879,1739595033975,-500.0,0.00010958,2]
[353138880,1739595033985,-430.17015497,0.00010958,2]
[353138881,1739595033995,-500.0,0.00010958,2]
[353138882,1739595034005,-500.0,0.00010958,2]
[353138883,1739595034015,-541.24,0.00010958,2]
[353138884,1739595034024,-500.0,0.00010958,2]
[353138885,1739595034034,-500.0,0.00010958,2]
[353138886,1739595034044,-500.64530616,0.00010958,2]
[353138887,1739595034054,-500.0,0.00010958,2]
[353138888,1739595034064,-500.0,0.00010958,2]
[353138889,1739595034073,-500.0,0.00010958,2]
[353138890,1739595034084,-502.22940182,0.00010958,2]
[353138891,1739595034094,-500.0,0.00010958,2]
[353138892,1739595034104,-500.0,0.00010958,2]
[353138893,1739595034114,-500.0,0.00010958,2]
[353138894,1739595034124,-500.0,0.00010958,2]
[353138895,1739595034134,-505.87865751,0.00010958,2]
[353138896,1739595034143,-516.85,0.00010958,2]
[353138897,1739595034153,-500.0,0.00010958,2]
[353138898,1739595034164,-500.0,0.00010958,2]
[353138899,1739595034174,-500.0,0.00010958,2]
[353138900,1739595034184,-500.0,0.00010958,2]
[353138901,1739595034193,-500.0,0.00010958,2]
[353138902,1739595034203,-518.54,0.00010958,2]
[353138903,1739595034212,-500.0,0.00010958,2]
[353138904,1739595034222,-748.36,0.00010958,2]
[353138905,1739595034232,-500.0,0.00010958,2]
[353138906,1739595034242,-500.0,0.00010958,2]
[353138907,1739595034251,-500.0,0.00010958,2]
[353138908,1739595034261,-510.26233762,0.00010958,2]
[353138909,1739595034271,-164.16019992,0.00010958,2]
[353138910,1739595034870,674.57,8.219e-05,2]
[353138914,1739595037546,-674.57,0.00010459,2]
[353138915,1739595037556,-335.83980008,0.00010958,2]
[353138917,1739595037566,-500.0,0.00010958,2]
[353138918,1739595037575,-1298.25,0.00010958,2]
[353138919,1739595037584,-500.0,0.00010958,2]
[353138920,1739595037594,-508.34235199,0.00010958,2]
[353138921,1739595037606,-500.0,0.00010958,2]
[353138922,1739595037618,-500.0,0.00010958,2]
[353138923,1739595037628,-500.0,0.00010958,2]
[353138924,1739595037638,-500.0,0.00010958,2]
[353138925,1739595037648,-362.16906248,0.00010958,2]
[353138926,1739595037657,-500.0,0.00010958,2]
[353138927,1739595037668,-500.0,0.00010958,2]
[353138928,1739595037678,-500.0,0.00010958,2]
[353138929,1739595037688,-500.0,0.00010958,2]
[353138930,1739595037697,-500.0,0.00010958,2]
[353138931,1739595037707,-500.0,0.00010958,2]
[353138932,1739595037717,-505.04958734,0.00010958,2]
[353138933,1739595037727,-500.0,0.00010958,2]
[353138934,1739595037737,-500.0,0.00010958,2]
[353138935,1739595037746,-574.18,0.00010958,2]
[353138936,1739595037756,-500.0,0.00010958,2]
[353138937,1739595037765,-500.0,0.00010958,2]
[353138938,1739595037775,-500.0,0.00010958,2]
[353138945,1739595038011,-606.8,0.00010958,2]
[353138946,1739595038021,-504.45616024,0.00010958,2]
[353138947,1739595038031,-500.0,0.00010958,2]
[353138948,1739595038040,-500.0,0.00010958,2]
[353138949,1739595038050,-130.34303787,0.00010958,2]
[353138950,1739595038064,-369.65696213,0.00010958,2]
[353138951,1739595038075,-607.99,0.00010958,2]
[353138952,1739595038086,-500.0,0.00010958,2]
[353138953,1739595038096,-731.01,0.00010958,2]